[Event "*** Titled Tuesday 3|2 Blitz"]
[Site "Chess.com"]
[Date "2016.07.05"]
[Round "9"]
[White "jcibarra"]
[Black "FairChess_on_YouTube"]
[Result "1/2-1/2"]
[WhiteElo "2660"]
[BlackElo "2717"]
[TimeControl "180+2"]
[EndTime "18:56:17 PDT"]
[Termination "Game drawn by repetition"]

1. e4 {[%clk 0:03:01.9]} 1... e5 {[%clk 0:02:58.1]} 2. Nf3 {[%clk 0:03:03]} 2...
Nc6 {[%clk 0:02:59.6]} 3. Bb5 {[%clk 0:03:03.9]} 3... Nf6 {[%clk 0:03:00.4]} 4.
O-O {[%clk 0:03:05.2]} 4... Nxe4 {[%clk 0:03:01.3]} 5. Re1 {[%clk 0:03:06.7]}
5... Nd6 {[%clk 0:03:02.1]} 6. Nxe5 {[%clk 0:03:08.1]} 6... Be7 {[%clk
0:03:03.3]} 7. Bf1 {[%clk 0:03:07.8]} 7... Nf5 {[%clk 0:03:04.4]} 8. c3 {[%clk
0:03:08.5]} 8... Nxe5 {[%clk 0:02:58.9]} 9. Rxe5 {[%clk 0:03:10.4]} 9... d5
{[%clk 0:03:00.1]} 10. d4 {[%clk 0:03:10.9]} 10... c6 {[%clk 0:02:58.4]} 11. Nd2
{[%clk 0:03:10.3]} 11... O-O {[%clk 0:02:58.8]} 12. Nf3 {[%clk 0:03:11.6]} 12...
Bd6 {[%clk 0:02:59.3]} 13. Re1 {[%clk 0:03:12.6]} 13... Nh4 {[%clk 0:02:57.6]}
14. Nxh4 {[%clk 0:03:11]} 14... Qxh4 {[%clk 0:02:59.5]} 15. g3 {[%clk
0:03:11.6]} 15... Qf6 {[%clk 0:02:59.6]} 16. Bg2 {[%clk 0:03:11.2]} 16... Bf5
{[%clk 0:02:58.7]} 17. Qf3 {[%clk 0:03:10.7]} 17... Rae8 {[%clk 0:02:47]} 18.
Bd2 {[%clk 0:02:48.8]} 18... Qg6 {[%clk 0:02:43.4]} 19. Rxe8 {[%clk 0:02:36.4]}
19... Rxe8 {[%clk 0:02:45.3]} 20. Re1 {[%clk 0:02:36.9]} 20... Rxe1+ {[%clk
0:02:41.5]} 21. Bxe1 {[%clk 0:02:38.8]} 21... h5 {[%clk 0:02:37.9]} 22. Qe2
{[%clk 0:02:34.7]} 22... h4 {[%clk 0:02:27.9]} 23. Bf3 {[%clk 0:02:18.8]} 23...
Kh7 {[%clk 0:02:14.8]} 24. Bh5 {[%clk 0:02:02]} 24... Qf6 {[%clk 0:02:15.2]} 25.
Bd2 {[%clk 0:01:55.6]} 25... g6 {[%clk 0:02:12.4]} 26. Bf3 {[%clk 0:01:51.1]}
26... Kg7 {[%clk 0:02:10]} 27. Qe3 {[%clk 0:01:50.8]} 27... Be6 {[%clk 0:01:54]}
28. Be2 {[%clk 0:01:46.4]} 28... hxg3 {[%clk 0:01:37.9]} 29. hxg3 {[%clk
0:01:48.3]} 29... Bf5 {[%clk 0:01:35.6]} 30. Kg2 {[%clk 0:01:36.5]} 30... Be4+
{[%clk 0:01:27.8]} 31. f3 {[%clk 0:01:36.3]} 31... Bf5 {[%clk 0:01:23.5]} 32.
Qh6+ {[%clk 0:01:31.9]} 32... Kg8 {[%clk 0:01:24.3]} 33. Qg5 {[%clk 0:01:30.8]}
33... Qe6 {[%clk 0:01:18]} 34. Qe3 {[%clk 0:01:29]} 34... Qd7 {[%clk 0:01:12.7]}
35. Be1 {[%clk 0:01:22.1]} 35... Bh3+ {[%clk 0:01:12.1]} 36. Kh2 {[%clk
0:01:21.8]} 36... b6 {[%clk 0:01:09.1]} 37. Qh6 {[%clk 0:01:16.2]} 37... Qe6
{[%clk 0:01:04.5]} 38. Qd2 {[%clk 0:01:13.7]} 38... Bf5 {[%clk 0:00:58]} 39. Bf2
{[%clk 0:01:13.3]} 39... Qf6 {[%clk 0:00:55]} 40. Kg2 {[%clk 0:01:14.1]} 40...
g5 {[%clk 0:00:55.3]} 41. Be3 {[%clk 0:01:02.6]} 41... Qh8 {[%clk 0:00:49.5]}
42. Bf2 {[%clk 0:00:47.1]} 42... f6 {[%clk 0:00:37.4]} 43. Kg1 {[%clk
0:00:44.7]} 43... Kf7 {[%clk 0:00:37.2]} 44. Bf1 {[%clk 0:00:42.5]} 44... Qb8
{[%clk 0:00:32.3]} 45. Qe1 {[%clk 0:00:40.6]} 45... c5 {[%clk 0:00:28.9]} 46.
Bb5 {[%clk 0:00:37.9]} 46... Qc7 {[%clk 0:00:17.7]} 47. Qe8+ {[%clk 0:00:35]}
47... Kg7 {[%clk 0:00:18.3]} 48. Kg2 {[%clk 0:00:34.8]} 48... cxd4 {[%clk
0:00:16.4]} 49. cxd4 {[%clk 0:00:27.7]} 49... g4 {[%clk 0:00:17.5]} 50. Be2
{[%clk 0:00:26.1]} 50... Qc2 {[%clk 0:00:14]} 51. fxg4 {[%clk 0:00:22.6]} 51...
Be4+ {[%clk 0:00:12.6]} 52. Bf3 {[%clk 0:00:24]} 52... Qd3 {[%clk 0:00:08.3]}
53. Bxe4 {[%clk 0:00:20.5]} 53... dxe4 {[%clk 0:00:08.5]} 54. Qd7+ {[%clk
0:00:21.2]} 54... Kg6 {[%clk 0:00:09.8]} 55. Qxd6 {[%clk 0:00:17.1]} 55... Qf3+
{[%clk 0:00:10.4]} 56. Kg1 {[%clk 0:00:16.8]} 56... e3 {[%clk 0:00:11.8]} 57.
Be1 {[%clk 0:00:16.6]} 57... Qe2 {[%clk 0:00:06]} 58. Bc3 {[%clk 0:00:16.6]}
58... Qd1+ {[%clk 0:00:05.9]} 59. Kg2 {[%clk 0:00:16.8]} 59... Qe2+ {[%clk
0:00:06.9]} 60. Kg1 {[%clk 0:00:14.8]} 60... Qf2+ {[%clk 0:00:07.3]} 61. Kh1
{[%clk 0:00:16]} 61... Qf1+ {[%clk 0:00:08.5]} 62. Kh2 {[%clk 0:00:17.5]} 62...
Qf2+ {[%clk 0:00:09.4]} 63. Kh1 {[%clk 0:00:17.6]} 63... Qf3+ {[%clk 0:00:10.5]}
64. Kh2 {[%clk 0:00:18.8]} 64... Qe2+ {[%clk 0:00:05]} 65. Kh3 {[%clk
0:00:19.8]} 65... Qf1+ {[%clk 0:00:03.2]} 66. Kh2 {[%clk 0:00:20.5]} 66... Qe2+
{[%clk 0:00:04.7]} 67. Kh3 {[%clk 0:00:21.6]} 67... Qf1+ {[%clk 0:00:05.2]} 68.
Kh2 {[%clk 0:00:23]} 68... Qe2+ {[%clk 0:00:05.8]} 69. Kg1 {[%clk 0:00:23.8]}
69... Qf2+ {[%clk 0:00:06.9]} 70. Kh1 {[%clk 0:00:25.1]} 70... Qf1+ {[%clk
0:00:07.6]} 71. Kh2 {[%clk 0:00:26.3]} 71... Qf2+ {[%clk 0:00:08.7]} 72. Kh1
{[%clk 0:00:27.6]} 72... Qf3+ {[%clk 0:00:09.1]} 73. Kg1 {[%clk 0:00:27.2]}
73... Qf2+ {[%clk 0:00:10.1]} 74. Kh1 {[%clk 0:00:28.3]} 1/2-1/2

[Event "*** Titled Tuesday 3|2 Blitz"]
[Site "Chess.com"]
[Date "2016.07.05"]
[Round "9"]
[White "DanielNaroditsky"]
[Black "SavelijTartakover"]
[Result "1-0"]
[WhiteElo "2677"]
[BlackElo "2515"]
[TimeControl "180+2"]
[EndTime "18:57:26 PDT"]
[Termination "DanielNaroditsky won by resignation"]

1. d4 {[%clk 0:03:01.9]} 1... Nf6 {[%clk 0:03:00.5]} 2. Nc3 {[%clk 0:03:03.1]}
2... d5 {[%clk 0:03:00.3]} 3. Bf4 {[%clk 0:03:04.1]} 3... e6 {[%clk 0:03:01]} 4.
e3 {[%clk 0:03:03.7]} 4... Bb4 {[%clk 0:03:00.7]} 5. Bd3 {[%clk 0:03:03.7]} 5...
b6 {[%clk 0:03:00.4]} 6. Ne2 {[%clk 0:03:04.1]} 6... Ba6 {[%clk 0:02:59.8]} 7.
O-O {[%clk 0:03:04.9]} 7... Bxd3 {[%clk 0:02:59]} 8. cxd3 {[%clk 0:03:06]} 8...
Bd6 {[%clk 0:02:59]} 9. e4 {[%clk 0:02:59.9]} 9... Bxf4 {[%clk 0:02:55.6]} 10.
Nxf4 {[%clk 0:03:01.8]} 10... O-O {[%clk 0:02:56.6]} 11. Qf3 {[%clk 0:02:57.7]}
11... Nc6 {[%clk 0:02:52.1]} 12. e5 {[%clk 0:02:12.7]} 12... Nxd4 {[%clk
0:02:42.7]} 13. Qe3 {[%clk 0:02:10.2]} 13... Nf5 {[%clk 0:02:43.1]} 14. Qh3
{[%clk 0:02:10.3]} 14... Nd7 {[%clk 0:02:40.8]} 15. Rfe1 {[%clk 0:02:06.5]}
15... Nd4 {[%clk 0:02:37.3]} 16. Rac1 {[%clk 0:02:04.6]} 16... c6 {[%clk
0:02:30.4]} 17. Qe3 {[%clk 0:01:58]} 17... c5 {[%clk 0:02:28.4]} 18. Kh1 {[%clk
0:01:51.1]} 18... Qg5 {[%clk 0:02:25.3]} 19. Nfxd5 {[%clk 0:01:49.8]} 19... Qxe3
{[%clk 0:02:18.5]} 20. Ne7+ {[%clk 0:01:50.8]} 20... Kh8 {[%clk 0:02:18.8]} 21.
fxe3 {[%clk 0:01:52.7]} 21... Rfe8 {[%clk 0:02:07.8]} 22. exd4 {[%clk
0:01:51.4]} 22... Rxe7 {[%clk 0:02:08.8]} 23. Nb5 {[%clk 0:01:48.3]} 23... h6
{[%clk 0:01:51.8]} 24. b4 {[%clk 0:01:43.4]} 24... Rc8 {[%clk 0:01:04.1]} 25.
Nxa7 {[%clk 0:01:40.7]} 25... Ra8 {[%clk 0:01:02.1]} 26. Nc6 {[%clk 0:01:41.8]}
26... Ree8 {[%clk 0:01:03]} 27. dxc5 {[%clk 0:01:34.4]} 27... bxc5 {[%clk
0:01:02.3]} 28. bxc5 {[%clk 0:01:36.3]} 28... Rec8 {[%clk 0:00:55.8]} 29. Nb4
{[%clk 0:01:37.3]} 29... Rxc5 {[%clk 0:00:50]} 30. Rxc5 {[%clk 0:01:27.5]} 30...
Nxc5 {[%clk 0:00:50.8]} 31. d4 {[%clk 0:01:25.6]} 31... Na4 {[%clk 0:00:51.6]}
32. Rc1 {[%clk 0:01:15.7]} 32... Rd8 {[%clk 0:00:49.1]} 33. Nc6 {[%clk
0:01:09.1]} 33... Rc8 {[%clk 0:00:45.4]} 34. Rc2 {[%clk 0:01:07.3]} 34... Nb6
{[%clk 0:00:44.3]} 35. Kg1 {[%clk 0:01:01.9]} 35... Ra8 {[%clk 0:00:41.8]} 36.
Rb2 {[%clk 0:00:56.8]} 36... Na4 {[%clk 0:00:32.9]} 37. Rb3 {[%clk 0:00:40.5]}
37... Rc8 {[%clk 0:00:31.2]} 38. Nb4 {[%clk 0:00:41.2]} 38... Rc4 {[%clk
0:00:25.7]} 39. d5 {[%clk 0:00:31.1]} 39... exd5 {[%clk 0:00:26]} 40. Nxd5
{[%clk 0:00:33]} 40... Rc5 {[%clk 0:00:21]} 41. Nb4 {[%clk 0:00:26.4]} 41...
Rxe5 {[%clk 0:00:20.5]} 42. Kf2 {[%clk 0:00:28]} 42... Nc5 {[%clk 0:00:20.5]}
43. Re3 {[%clk 0:00:24.4]} 43... Rf5+ {[%clk 0:00:18.7]} 44. Ke2 {[%clk
0:00:25.8]} 44... Kg8 {[%clk 0:00:18.2]} 45. Nc6 {[%clk 0:00:23.9]} 45... Kh7
{[%clk 0:00:17]} 46. Re5 {[%clk 0:00:21.6]} 46... Rxe5+ {[%clk 0:00:16.5]} 47.
Nxe5 {[%clk 0:00:23.5]} 47... f6 {[%clk 0:00:16.8]} 48. Nd3 {[%clk 0:00:23.6]}
48... Na4 {[%clk 0:00:17.6]} 49. Ke3 {[%clk 0:00:21.5]} 49... Kg6 {[%clk
0:00:18.2]} 50. Kd4 {[%clk 0:00:22.5]} 50... Kf5 {[%clk 0:00:18.7]} 51. Nc5
{[%clk 0:00:22.1]} 51... Nb6 {[%clk 0:00:18.2]} 52. a4 {[%clk 0:00:22.5]} 52...
Nc8 {[%clk 0:00:16.9]} 53. a5 {[%clk 0:00:21.4]} 53... h5 {[%clk 0:00:17.3]} 54.
a6 {[%clk 0:00:22.1]} 54... h4 {[%clk 0:00:16.4]} 55. Kd5 {[%clk 0:00:19.9]}
55... Na7 {[%clk 0:00:17.2]} 56. Kd6 {[%clk 0:00:16.7]} 56... h3 {[%clk
0:00:17.7]} 57. gxh3 {[%clk 0:00:15]} 57... Kg6 {[%clk 0:00:14.4]} 58. Kc7
{[%clk 0:00:14.3]} 58... f5 {[%clk 0:00:15.2]} 59. Kb6 {[%clk 0:00:11.3]} 59...
Nc8+ {[%clk 0:00:15.9]} 60. Kc7 {[%clk 0:00:12.9]} 60... Na7 {[%clk 0:00:16.9]}
61. Ne6 {[%clk 0:00:13.2]} 61... Kf6 {[%clk 0:00:15]} 62. Nd4 {[%clk 0:00:10.5]}
62... f4 {[%clk 0:00:14.2]} 63. Kb6 {[%clk 0:00:09]} 63... Nc8+ {[%clk
0:00:14.4]} 64. Kc7 {[%clk 0:00:10]} 64... Na7 {[%clk 0:00:15.2]} 65. Kb7 {[%clk
0:00:11.5]} 65... Nb5 {[%clk 0:00:10.3]} 66. Nxb5 {[%clk 0:00:11.3]} 66... f3
{[%clk 0:00:11.1]} 67. Nc3 {[%clk 0:00:12.5]} 67... Ke5 {[%clk 0:00:11.9]} 68.
a7 {[%clk 0:00:13.2]} 68... f2 {[%clk 0:00:12.4]} 69. a8=Q {[%clk 0:00:13.3]}
69... f1=Q {[%clk 0:00:13.6]} 70. Qe8+ {[%clk 0:00:13.8]} 70... Kd4 {[%clk
0:00:14]} 71. Ne2+ {[%clk 0:00:14.9]} 71... Kd3 {[%clk 0:00:14]} 72. Ng3 {[%clk
0:00:08.6]} 72... Qg2+ {[%clk 0:00:13]} 73. Qc6 {[%clk 0:00:06.6]} 73... Qb2+
{[%clk 0:00:07.6]} 74. Kc8 {[%clk 0:00:06.1]} 74... Qxh2 {[%clk 0:00:06.9]} 75.
Qd5+ {[%clk 0:00:07.3]} 75... Kc2 {[%clk 0:00:06.4]} 76. Qc4+ {[%clk 0:00:08.2]}
76... Kb1 {[%clk 0:00:05.5]} 77. Qb3+ {[%clk 0:00:08.4]} 77... Ka1 {[%clk
0:00:06.6]} 78. Qc3+ {[%clk 0:00:08.8]} 78... Kb1 {[%clk 0:00:07]} 79. Ne4
{[%clk 0:00:08.9]} 79... g5 {[%clk 0:00:02.7]} 80. Nd2+ {[%clk 0:00:08.9]} 1-0

[Event "*** Titled Tuesday 3|2 Blitz"]
[Site "Chess.com"]
[Date "2016.07.05"]
[Round "9"]
[White "TyIerDurden"]
[Black "ZapataCharlesS"]
[Result "0-1"]
[WhiteElo "2448"]
[BlackElo "2502"]
[TimeControl "180+2"]
[EndTime "18:57:33 PDT"]
[Termination "ZapataCharlesS won by resignation"]

1. Nf3 {[%clk 0:03:01.9]} 1... d5 {[%clk 0:02:58.4]} 2. g3 {[%clk 0:03:03.8]}
2... Nc6 {[%clk 0:02:48.1]} 3. Bg2 {[%clk 0:03:05.7]} 3... e5 {[%clk 0:02:48.5]}
4. d3 {[%clk 0:03:06.9]} 4... f6 {[%clk 0:02:49.2]} 5. Nbd2 {[%clk 0:03:08.1]}
5... Be6 {[%clk 0:02:48.3]} 6. O-O {[%clk 0:03:09.2]} 6... Qd7 {[%clk
0:02:46.4]} 7. b3 {[%clk 0:03:07.8]} 7... h5 {[%clk 0:02:33.4]} 8. c4 {[%clk
0:03:06.8]} 8... g5 {[%clk 0:02:27.1]} 9. cxd5 {[%clk 0:02:59.2]} 9... Bxd5
{[%clk 0:02:28.4]} 10. h4 {[%clk 0:02:48.2]} 10... O-O-O {[%clk 0:02:21.5]} 11.
Bb2 {[%clk 0:02:43.9]} 11... Bc5 {[%clk 0:02:22.1]} 12. Rc1 {[%clk 0:02:39.6]}
12... Bb6 {[%clk 0:02:22]} 13. a4 {[%clk 0:02:33.7]} 13... Nh6 {[%clk
0:02:17.6]} 14. Nc4 {[%clk 0:02:23.4]} 14... gxh4 {[%clk 0:02:08.5]} 15. Nxh4
{[%clk 0:02:19.2]} 15... Bxg2 {[%clk 0:02:07]} 16. Kxg2 {[%clk 0:02:21.1]} 16...
Rdg8 {[%clk 0:02:01.5]} 17. Nxb6+ {[%clk 0:02:13.6]} 17... axb6 {[%clk
0:02:03.4]} 18. Rh1 {[%clk 0:01:45.4]} 18... Ne7 {[%clk 0:01:55.5]} 19. d4
{[%clk 0:01:36.2]} 19... e4 {[%clk 0:01:41.5]} 20. e3 {[%clk 0:01:36.9]} 20...
Nhf5 {[%clk 0:01:25.9]} 21. Qe2 {[%clk 0:01:19.8]} 21... Nxh4+ {[%clk 0:01:25]}
22. Rxh4 {[%clk 0:01:19]} 22... Nf5 {[%clk 0:01:16.4]} 23. Rf4 {[%clk
0:00:55.2]} 23... h4 {[%clk 0:01:15.1]} 24. Rh1 {[%clk 0:00:52.7]} 24... hxg3
{[%clk 0:01:06.6]} 25. Qg4 {[%clk 0:00:31.5]} 25... gxf2 {[%clk 0:00:36.9]} 26.
Kxf2 {[%clk 0:00:33.4]} 26... Nd6 {[%clk 0:00:36]} 27. Qxd7+ {[%clk 0:00:27]}
27... Kxd7 {[%clk 0:00:37.9]} 28. Rxh8 {[%clk 0:00:28.8]} 28... Rxh8 {[%clk
0:00:38.6]} 29. Ba3 {[%clk 0:00:29.1]} 29... Rh2+ {[%clk 0:00:35.7]} 30. Kg3
{[%clk 0:00:30]} 30... Re2 {[%clk 0:00:37.1]} 31. Bxd6 {[%clk 0:00:28.4]} 31...
cxd6 {[%clk 0:00:37.4]} 32. Rxe4 {[%clk 0:00:28.6]} 32... Rb2 {[%clk 0:00:35.8]}
33. Kg4 {[%clk 0:00:27.4]} 33... d5 {[%clk 0:00:19.4]} 34. Rf4 {[%clk
0:00:28.3]} 34... Ke6 {[%clk 0:00:21]} 35. Kf3 {[%clk 0:00:27.3]} 35... Rxb3
{[%clk 0:00:19]} 36. Rh4 {[%clk 0:00:28.7]} 36... Rb4 {[%clk 0:00:20.1]} 37. Rh7
{[%clk 0:00:26.7]} 37... Rxa4 {[%clk 0:00:21.2]} 38. Rxb7 {[%clk 0:00:26.4]}
38... Rb4 {[%clk 0:00:22.8]} 39. Rb8 {[%clk 0:00:24.5]} 39... Rb1 {[%clk
0:00:23.2]} 40. e4 {[%clk 0:00:25.6]} 40... dxe4+ {[%clk 0:00:17.2]} 41. Kxe4
{[%clk 0:00:27.5]} 41... f5+ {[%clk 0:00:18.8]} 42. Kd3 {[%clk 0:00:26.8]} 42...
b5 {[%clk 0:00:14]} 43. Kc2 {[%clk 0:00:26.1]} 43... Rb4 {[%clk 0:00:14.4]} 44.
Kc3 {[%clk 0:00:25.5]} 44... Rb1 {[%clk 0:00:16]} 45. Kc2 {[%clk 0:00:26.2]}
45... Rb4 {[%clk 0:00:13.5]} 46. Kc3 {[%clk 0:00:27.2]} 46... Rc4+ {[%clk
0:00:15.1]} 47. Kd3 {[%clk 0:00:26.1]} 47... Rb4 {[%clk 0:00:15.4]} 48. Kc3
{[%clk 0:00:27.4]} 48... Rb1 {[%clk 0:00:15.7]} 49. Kc2 {[%clk 0:00:28.7]} 49...
Rb4 {[%clk 0:00:15]} 50. Kc3 {[%clk 0:00:29.7]} 50... Rc4+ {[%clk 0:00:14]} 51.
Kd3 {[%clk 0:00:30.5]} 51... Ra4 {[%clk 0:00:15.3]} 52. Rb6+ {[%clk 0:00:28.9]}
52... Ke7 {[%clk 0:00:15.2]} 53. Rxb5 {[%clk 0:00:30]} 53... Ke6 {[%clk
0:00:16.8]} 54. Ke3 {[%clk 0:00:27.8]} 54... Kf6 {[%clk 0:00:16.8]} 55. Rb8
{[%clk 0:00:26.8]} 55... Ra1 {[%clk 0:00:16.1]} 56. Kf4 {[%clk 0:00:21.8]} 56...
Rf1+ {[%clk 0:00:16.2]} 57. Ke3 {[%clk 0:00:22.6]} 57... Re1+ {[%clk 0:00:17.9]}
58. Kf4 {[%clk 0:00:22.5]} 58... Re4+ {[%clk 0:00:18.4]} 59. Kf3 {[%clk
0:00:21.6]} 59... Rxd4 {[%clk 0:00:20]} 60. Rf8+ {[%clk 0:00:21.2]} 60... Kg6
{[%clk 0:00:21.2]} 61. Rg8+ {[%clk 0:00:17.9]} 61... Kf7 {[%clk 0:00:22.5]} 62.
Rb8 {[%clk 0:00:13.5]} 62... Kf6 {[%clk 0:00:22.3]} 63. Rf8+ {[%clk 0:00:12.6]}
63... Kg6 {[%clk 0:00:23.6]} 64. Rg8+ {[%clk 0:00:13.3]} 64... Kh6 {[%clk
0:00:24.4]} 65. Rh8+ {[%clk 0:00:14.5]} 65... Kg7 {[%clk 0:00:26]} 66. Rb8
{[%clk 0:00:15.2]} 66... Kg6 {[%clk 0:00:26.7]} 67. Rg8+ {[%clk 0:00:15.9]}
67... Kf6 {[%clk 0:00:28.2]} 68. Rf8+ {[%clk 0:00:17]} 68... Ke5 {[%clk
0:00:29.6]} 69. Re8+ {[%clk 0:00:18.1]} 69... Kf6 {[%clk 0:00:30.5]} 70. Rf8+
{[%clk 0:00:19.2]} 70... Kg6 {[%clk 0:00:32]} 71. Rg8+ {[%clk 0:00:20.4]} 71...
Kf7 {[%clk 0:00:33.7]} 72. Rb8 {[%clk 0:00:21.2]} 72... Ra4 {[%clk 0:00:34.7]}
73. Rb6 {[%clk 0:00:20.5]} 73... Kg7 {[%clk 0:00:36.1]} 74. Rd6 {[%clk
0:00:19.8]} 74... Kf7 {[%clk 0:00:37.3]} 75. Rb6 {[%clk 0:00:21]} 75... Re4
{[%clk 0:00:38.3]} 76. Rc6 {[%clk 0:00:21.1]} 76... Rd4 {[%clk 0:00:39.2]} 77.
Rb6 {[%clk 0:00:20.9]} 77... Ra4 {[%clk 0:00:40.7]} 78. Rc6 {[%clk 0:00:21.9]}
78... Ke7 {[%clk 0:00:41.3]} 79. Rb6 {[%clk 0:00:22.5]} 79... Rh4 {[%clk
0:00:42.9]} 80. Rc6 {[%clk 0:00:23.2]} 80... Re4 {[%clk 0:00:44.5]} 81. Rb6
{[%clk 0:00:24.2]} 81... Re6 {[%clk 0:00:46.4]} 82. Rxe6+ {[%clk 0:00:22.7]}
82... Kxe6 {[%clk 0:00:48.3]} 83. Kf4 {[%clk 0:00:24.3]} 83... Kf6 {[%clk
0:00:50.2]} 84. Kf3 {[%clk 0:00:25.2]} 84... Ke5 {[%clk 0:00:52.1]} 85. Ke3
{[%clk 0:00:26.4]} 85... Ke6 {[%clk 0:00:54]} 86. Kf4 {[%clk 0:00:27.6]} 86...
Kf6 {[%clk 0:00:55.9]} 87. Ke3 {[%clk 0:00:28.8]} 87... Kg5 {[%clk 0:00:57.8]}
88. Kf3 {[%clk 0:00:30.1]} 88... Kh5 {[%clk 0:00:59.3]} 89. Kf4 {[%clk
0:00:31.3]} 89... Kg6 {[%clk 0:01:01.2]} 90. Kf3 {[%clk 0:00:32.4]} 90... Kg5
{[%clk 0:01:03.1]} 91. Kg3 {[%clk 0:00:33.7]} 91... f4+ {[%clk 0:01:03.4]} 92.
Kf3 {[%clk 0:00:34.8]} 92... Kf5 {[%clk 0:01:05.3]} 93. Ke2 {[%clk 0:00:28.2]}
93... Ke5 {[%clk 0:01:07.2]} 94. Kf3 {[%clk 0:00:29.1]} 94... Kf5 {[%clk
0:01:06.9]} 95. Ke2 {[%clk 0:00:30]} 95... Ke4 {[%clk 0:01:08.8]} 96. Kf2 {[%clk
0:00:31.2]} 96... f3 {[%clk 0:01:09.6]} 97. Ke1 {[%clk 0:00:31.8]} 97... Ke3
{[%clk 0:01:11.5]} 98. Kf1 {[%clk 0:00:33]} 98... Kf4 {[%clk 0:01:13.1]} 99. Kf2
{[%clk 0:00:34.2]} 99... Ke4 {[%clk 0:01:14.6]} 100. Ke1 {[%clk 0:00:34.7]}
100... Ke3 {[%clk 0:01:16.5]} 101. Kf1 {[%clk 0:00:36]} 101... f2 {[%clk
0:01:18.4]} 0-1